[Event "November 21 Early 2023"]
[Site "https://www.chess.com"]
[Date "2023.11.21"]
[Round "2"]
[White "Streltsov, Alexey"]
[Black "Kamsky, Gata"]
[Result "1-0"]
[Board "39"]
[TimeControl "180+1"]
[WhiteFideId "24104434"]
[BlackFideId "2000024"]
[WhiteElo "2311"]
[BlackElo "2660"]
[WhiteTeam "ISR"]
[BlackTeam "USA"]
[WhiteClock "0:00:03"]
[BlackClock "0:00:00"]

1. d4 {[%clk 0:03:00]}  f5 {[%clk 0:02:58]} 2. Nc3 {[%clk 0:03:00]}  Nf6 {[%clk 0:02:57]} 3. Bf4 {[%clk 0:03:01]}  g6 {[%clk 0:02:54]} 4. f3 {[%clk 0:03:01]}  d5 {[%clk 0:02:50]} 5. e4 {[%clk 0:03:01]}  dxe4 {[%clk 0:02:48]} 6. fxe4 {[%clk 0:03:02]}  fxe4 {[%clk 0:02:48]} 7. Bc4 {[%clk 0:02:56]}  c6 {[%clk 0:02:41]} 8. Nge2 {[%clk 0:02:55]}  Nbd7 {[%clk 0:02:35]} 9. Bb3 {[%clk 0:02:38]}  Nb6 {[%clk 0:02:26]} 10. Be5 {[%clk 0:02:38]}  Nbd7 {[%clk 0:02:08]} 11. O-O {[%clk 0:02:38]}  Bg7 {[%clk 0:01:58]} 12. Nxe4 {[%clk 0:02:16]}  Nxe5 {[%clk 0:01:53]} 13. Nxf6+ {[%clk 0:02:16]}  exf6 {[%clk 0:01:50]} 14. dxe5 {[%clk 0:02:17]}  Qxd1 {[%clk 0:01:49]} 15. Raxd1 {[%clk 0:02:17]}  f5 {[%clk 0:01:49]} 16. Nf4 {[%clk 0:01:06]}  Ke7 {[%clk 0:01:49]} 17. Rfe1 {[%clk 0:01:03]}  Bd7 {[%clk 0:01:43]} 18. e6 {[%clk 0:00:50]}  Be8 {[%clk 0:01:42]} 19. c3 {[%clk 0:00:51]}  a5 {[%clk 0:01:27]} 20. a3 {[%clk 0:00:48]}  a4 {[%clk 0:01:26]} 21. Ba2 {[%clk 0:00:49]}  Ra5 {[%clk 0:01:24]} 22. Nd3 {[%clk 0:00:49]}  g5 {[%clk 0:01:14]} 23. Re2 {[%clk 0:00:41]}  h5 {[%clk 0:01:12]} 24. Red2 {[%clk 0:00:41]}  Rh6 {[%clk 0:01:05]} 25. Nb4 {[%clk 0:00:39]}  Be5 {[%clk 0:00:57]} 26. Rd7+ {[%clk 0:00:35]}  Bxd7 {[%clk 0:00:56]} 27. Rxd7+ {[%clk 0:00:36]}  Ke8 {[%clk 0:00:38]} 28. Rxb7 {[%clk 0:00:36]}  Rc5 {[%clk 0:00:37]} 29. Na6 {[%clk 0:00:23]}  Rb5 {[%clk 0:00:37]} 30. Ra7 {[%clk 0:00:12]}  Rxb2 {[%clk 0:00:36]} 31. Bc4 {[%clk 0:00:10]}  Bd6 {[%clk 0:00:29]} 32. Nc7+ {[%clk 0:00:05]}  Bxc7 {[%clk 0:00:29]} 33. Rxc7 {[%clk 0:00:06]}  Rb6 {[%clk 0:00:25]} 34. Kf2 {[%clk 0:00:06]}  h4 {[%clk 0:00:24]} 35. Ke3 {[%clk 0:00:05]}  h3 {[%clk 0:00:23]} 36. g3 {[%clk 0:00:05]}  Rf6 {[%clk 0:00:21]} 37. Kd4 {[%clk 0:00:05]}  Rb1 {[%clk 0:00:16]} 38. Ke5 {[%clk 0:00:05]}  Rh6 {[%clk 0:00:16]} 39. Kxf5 {[%clk 0:00:05]}  Rb2 {[%clk 0:00:14]} 40. Kxg5 {[%clk 0:00:05]}  Rxe6 {[%clk 0:00:09]} 41. Bxe6 {[%clk 0:00:05]}  Rxh2 {[%clk 0:00:09]} 42. Rh7 {[%clk 0:00:06]}  Re2 {[%clk 0:00:08]} 43. Bxh3 {[%clk 0:00:06]}  Re3 {[%clk 0:00:08]} 44. Bd7+ {[%clk 0:00:04]}  Kd8 {[%clk 0:00:07]} 45. Kf4 {[%clk 0:00:05]}  Rxc3 {[%clk 0:00:06]} 46. g4 {[%clk 0:00:03]}  Rxa3 {[%clk 0:00:07]} 47. Bxc6 {[%clk 0:00:03]}  Ra1 {[%clk 0:00:07]} 48. Be4 {[%clk 0:00:04]}  a3 {[%clk 0:00:07]} 49. Ra7 {[%clk 0:00:05]}  Rf1+ {[%clk 0:00:05]} 50. Kg5 {[%clk 0:00:03]}  Re1 {[%clk 0:00:05]} 51. Bf5 {[%clk 0:00:03]}  Re3 {[%clk 0:00:00]} 52. Kf6 {[%clk 0:00:03]} 1-0

[Event "November 21 Early 2023"]
[Site "https://www.chess.com"]
[Date "2023.11.21"]
[Round "2"]
[White "JuniorJumper"]
[Black "Taher, Yoseph Theolifus"]
[Result "0-1"]
[Board "43"]
[TimeControl "180+1"]
[BlackFideId "7105347"]
[WhiteElo "2572"]
[BlackElo "2352"]
[BlackTeam "INA"]
[WhiteClock "0:00:17"]
[BlackClock "0:02:22"]

1. d4 {[%clk 0:02:51]}  Nf6 {[%clk 0:02:59]} 2. Bf4 {[%clk 0:02:51]}  c5 {[%clk 0:02:59]} 3. e3 {[%clk 0:02:48]}  Nd5 {[%clk 0:02:59]} 4. Bg3 {[%clk 0:02:47]}  Qb6 {[%clk 0:02:59]} 5. Nc3 {[%clk 0:02:38]}  Nxc3 {[%clk 0:02:59]} 6. bxc3 {[%clk 0:02:39]}  g6 {[%clk 0:02:59]} 7. Rb1 {[%clk 0:02:35]}  Qa5 {[%clk 0:02:54]} 8. Rb3 {[%clk 0:02:13]}  Bg7 {[%clk 0:02:51]} 9. Bd3 {[%clk 0:01:51]}  O-O {[%clk 0:02:40]} 10. Ne2 {[%clk 0:01:49]}  a6 {[%clk 0:02:39]} 11. O-O {[%clk 0:01:45]}  d5 {[%clk 0:02:40]} 12. c4 {[%clk 0:01:39]}  b5 {[%clk 0:02:29]} 13. cxd5 {[%clk 0:00:39]}  c4 {[%clk 0:02:28]} 14. Rb1 {[%clk 0:00:38]}  cxd3 {[%clk 0:02:28]} 15. cxd3 {[%clk 0:00:39]}  Qxa2 {[%clk 0:02:26]} 16. Nc3 {[%clk 0:00:38]}  Qa5 {[%clk 0:02:26]} 17. Qb3 {[%clk 0:00:37]}  Nd7 {[%clk 0:02:24]} 18. Ra1 {[%clk 0:00:36]}  Qb6 {[%clk 0:02:24]} 19. Nxb5 {[%clk 0:00:17]}  Bb7 {[%clk 0:02:22]} 0-1

[Event "November 21 Early 2023"]
[Site "https://www.chess.com"]
[Date "2023.11.21"]
[Round "2"]
[White "Zubarev, Alexander"]
[Black "Galaktionov, Artem"]
[Result "1-0"]
[Board "45"]
[TimeControl "180+1"]
[WhiteFideId "14104385"]
[BlackFideId "24175471"]
[WhiteElo "2363"]
[BlackElo "2367"]
[WhiteTeam "UKR"]
[BlackTeam "RUS"]
[WhiteClock "0:00:05"]
[BlackClock "0:00:16"]

1. d4 {[%clk 0:03:00]}  c6 {[%clk 0:03:00]} 2. Nf3 {[%clk 0:02:56]}  g6 {[%clk 0:03:00]} 3. e4 {[%clk 0:02:55]}  Bg7 {[%clk 0:03:00]} 4. Nc3 {[%clk 0:02:53]}  d6 {[%clk 0:03:00]} 5. Be3 {[%clk 0:02:52]}  Nd7 {[%clk 0:03:00]} 6. h3 {[%clk 0:02:53]}  e5 {[%clk 0:02:59]} 7. a4 {[%clk 0:02:48]}  Ngf6 {[%clk 0:02:59]} 8. dxe5 {[%clk 0:02:43]}  dxe5 {[%clk 0:03:00]} 9. a5 {[%clk 0:02:43]}  Qe7 {[%clk 0:02:59]} 10. Nd2 {[%clk 0:02:20]}  Nc5 {[%clk 0:02:57]} 11. Bc4 {[%clk 0:02:18]}  O-O {[%clk 0:02:56]} 12. O-O {[%clk 0:02:18]}  Rd8 {[%clk 0:02:55]} 13. Qb1 {[%clk 0:02:06]}  Ne6 {[%clk 0:02:55]} 14. Ne2 {[%clk 0:01:46]}  Nh5 {[%clk 0:02:49]} 15. Qa2 {[%clk 0:01:36]}  Nhf4 {[%clk 0:02:48]} 16. Bxf4 {[%clk 0:01:09]}  Nxf4 {[%clk 0:02:47]} 17. Nxf4 {[%clk 0:01:07]}  exf4 {[%clk 0:02:33]} 18. Nf3 {[%clk 0:01:00]}  Be6 {[%clk 0:02:29]} 19. Bxe6 {[%clk 0:00:58]}  Qxe6 {[%clk 0:02:30]} 20. Qxe6 {[%clk 0:00:56]}  fxe6 {[%clk 0:02:31]} 21. c3 {[%clk 0:00:51]}  h6 {[%clk 0:02:29]} 22. a6 {[%clk 0:00:45]}  b6 {[%clk 0:02:25]} 23. Rfd1 {[%clk 0:00:45]}  Kf7 {[%clk 0:02:24]} 24. Kf1 {[%clk 0:00:44]}  Ke7 {[%clk 0:02:21]} 25. Ke2 {[%clk 0:00:43]}  b5 {[%clk 0:02:19]} 26. Rxd8 {[%clk 0:00:22]}  Rxd8 {[%clk 0:02:19]} 27. Rd1 {[%clk 0:00:22]}  Rb8 {[%clk 0:02:09]} 28. Nd4 {[%clk 0:00:21]}  Rb6 {[%clk 0:02:09]} 29. Nb3 {[%clk 0:00:19]}  b4 {[%clk 0:01:46]} 30. Nc5 {[%clk 0:00:19]}  bxc3 {[%clk 0:01:39]} 31. bxc3 {[%clk 0:00:20]}  Rb5 {[%clk 0:01:26]} 32. Rd7+ {[%clk 0:00:19]}  Kf6 {[%clk 0:01:27]} 33. Nd3 {[%clk 0:00:13]}  Bf8 {[%clk 0:01:25]} 34. e5+ {[%clk 0:00:06]}  Kg5 {[%clk 0:01:24]} 35. Rxa7 {[%clk 0:00:04]}  Ra5 {[%clk 0:01:21]} 36. Rf7 {[%clk 0:00:03]}  Ba3 {[%clk 0:01:21]} 37. a7 {[%clk 0:00:03]}  h5 {[%clk 0:01:08]} 38. Kf3 {[%clk 0:00:03]}  Kh6 {[%clk 0:01:01]} 39. Nxf4 {[%clk 0:00:03]}  Bc5 {[%clk 0:01:00]} 40. Nxe6 {[%clk 0:00:04]}  Bxa7 {[%clk 0:01:01]} 41. Rf8 {[%clk 0:00:03]}  g5 {[%clk 0:00:58]} 42. Rf6+ {[%clk 0:00:03]}  Kh7 {[%clk 0:00:58]} 43. Nxg5+ {[%clk 0:00:03]}  Kg7 {[%clk 0:00:59]} 44. Ne6+ {[%clk 0:00:03]}  Kh7 {[%clk 0:00:57]} 45. Ke4 {[%clk 0:00:03]}  Bb8 {[%clk 0:00:55]} 46. f4 {[%clk 0:00:04]}  Ra3 {[%clk 0:00:51]} 47. g4 {[%clk 0:00:03]}  hxg4 {[%clk 0:00:51]} 48. hxg4 {[%clk 0:00:04]}  Rxc3 {[%clk 0:00:49]} 49. Kf5 {[%clk 0:00:04]}  Bxe5 {[%clk 0:00:26]} 50. fxe5 {[%clk 0:00:04]}  Rf3+ {[%clk 0:00:21]} 51. Nf4 {[%clk 0:00:04]}  c5 {[%clk 0:00:20]} 52. Rc6 {[%clk 0:00:04]}  Rc3 {[%clk 0:00:19]} 53. Rc7+ {[%clk 0:00:04]}  Kg8 {[%clk 0:00:18]} 54. g5 {[%clk 0:00:05]}  c4 {[%clk 0:00:18]} 55. g6 {[%clk 0:00:05]}  Rc1 {[%clk 0:00:16]} 56. Kf6 {[%clk 0:00:05]} 1-0

[Event "November 21 Early 2023"]
[Site "https://www.chess.com"]
[Date "2023.11.21"]
[Round "2"]
[White "Thorfinnsson, Bjorn"]
[Black "Kuzubov, Yuriy"]
[Result "0-1"]
[Board "46"]
[TimeControl "180+1"]
[WhiteFideId "2300982"]
[BlackFideId "14112906"]
[WhiteElo "2381"]
[BlackElo "2487"]
[WhiteTeam "ISL"]
[BlackTeam "UKR"]
[WhiteClock "0:00:03"]
[BlackClock "0:00:12"]

1. d4 {[%clk 0:03:00]}  Nf6 {[%clk 0:02:59]} 2. Nf3 {[%clk 0:03:00]}  e6 {[%clk 0:02:59]} 3. Bg5 {[%clk 0:03:00]}  h6 {[%clk 0:02:58]} 4. Bh4 {[%clk 0:02:59]}  c5 {[%clk 0:02:53]} 5. e3 {[%clk 0:02:59]}  Nc6 {[%clk 0:02:53]} 6. c3 {[%clk 0:02:58]}  d5 {[%clk 0:02:35]} 7. Nbd2 {[%clk 0:02:58]}  Qb6 {[%clk 0:02:35]} 8. Qb3 {[%clk 0:02:57]}  c4 {[%clk 0:02:31]} 9. Qc2 {[%clk 0:02:56]}  g5 {[%clk 0:02:30]} 10. Bg3 {[%clk 0:02:55]}  Nh5 {[%clk 0:02:31]} 11. Be2 {[%clk 0:02:54]}  Bg7 {[%clk 0:02:23]} 12. Be5 {[%clk 0:02:40]}  Nf6 {[%clk 0:01:55]} 13. Bg3 {[%clk 0:02:39]}  Nh5 {[%clk 0:01:52]} 14. Be5 {[%clk 0:02:38]}  Bxe5 {[%clk 0:01:47]} 15. Nxe5 {[%clk 0:02:35]}  Nxe5 {[%clk 0:01:46]} 16. dxe5 {[%clk 0:02:28]}  Ng7 {[%clk 0:01:46]} 17. Nf3 {[%clk 0:02:20]}  Qc7 {[%clk 0:01:42]} 18. e4 {[%clk 0:02:16]}  g4 {[%clk 0:01:40]} 19. Nd4 {[%clk 0:02:15]}  Qxe5 {[%clk 0:01:39]} 20. exd5 {[%clk 0:02:15]}  Qxd5 {[%clk 0:01:27]} 21. Qa4+ {[%clk 0:02:11]}  Bd7 {[%clk 0:01:26]} 22. Qxc4 {[%clk 0:02:09]}  Qxc4 {[%clk 0:01:23]} 23. Bxc4 {[%clk 0:02:08]}  a6 {[%clk 0:01:20]} 24. Be2 {[%clk 0:02:07]}  e5 {[%clk 0:01:15]} 25. Nb3 {[%clk 0:02:06]}  h5 {[%clk 0:01:15]} 26. O-O-O {[%clk 0:01:56]}  Bc6 {[%clk 0:01:11]} 27. f3 {[%clk 0:01:56]}  Ne6 {[%clk 0:01:00]} 28. fxg4 {[%clk 0:01:46]}  Bxg2 {[%clk 0:00:59]} 29. Rhe1 {[%clk 0:01:45]}  f6 {[%clk 0:00:53]} 30. gxh5 {[%clk 0:01:30]}  Nf4 {[%clk 0:00:52]} 31. Bg4 {[%clk 0:01:14]}  O-O {[%clk 0:00:42]} 32. Rg1 {[%clk 0:01:02]}  Kh8 {[%clk 0:00:37]} 33. Rd2 {[%clk 0:00:53]}  f5 {[%clk 0:00:30]} 34. Bd1 {[%clk 0:00:48]}  Bd5 {[%clk 0:00:27]} 35. Rg5 {[%clk 0:00:41]}  Rae8 {[%clk 0:00:14]} 36. Nc5 {[%clk 0:00:38]}  e4 {[%clk 0:00:13]} 37. Rf2 {[%clk 0:00:25]}  Nh3 {[%clk 0:00:13]} 38. Rfxf5 {[%clk 0:00:23]}  Nxg5 {[%clk 0:00:13]} 39. Rxd5 {[%clk 0:00:21]}  Nf3 {[%clk 0:00:13]} 40. Nxb7 {[%clk 0:00:16]}  e3 {[%clk 0:00:13]} 41. Be2 {[%clk 0:00:16]}  Ng1 {[%clk 0:00:13]} 42. Bxa6 {[%clk 0:00:16]}  e2 {[%clk 0:00:13]} 43. Bxe2 {[%clk 0:00:15]}  Rxe2 {[%clk 0:00:13]} 44. Rd1 {[%clk 0:00:12]}  Rb8 {[%clk 0:00:12]} 45. Rxg1 {[%clk 0:00:03]}  Rxb7 {[%clk 0:00:12]} 0-1

[Event "November 21 Early 2023"]
[Site "https://www.chess.com"]
[Date "2023.11.21"]
[Round "2"]
[White "Zakhartsov, Vladimir"]
[Black "Statham_l3"]
[Result "1-0"]
[Board "47"]
[TimeControl "180+1"]
[WhiteFideId "4145097"]
[WhiteElo "2448"]
[BlackElo "2562"]
[WhiteTeam "RUS"]
[WhiteClock "0:01:10"]
[BlackClock "0:00:00"]

1. d4 {[%clk 0:02:59]}  e6 {[%clk 0:02:58]} 2. e4 {[%clk 0:02:58]}  d5 {[%clk 0:02:57]} 3. Nd2 {[%clk 0:02:58]}  Nf6 {[%clk 0:02:54]} 4. Bd3 {[%clk 0:02:58]}  c5 {[%clk 0:02:50]} 5. e5 {[%clk 0:02:57]}  Nfd7 {[%clk 0:02:50]} 6. c3 {[%clk 0:02:57]}  cxd4 {[%clk 0:02:45]} 7. cxd4 {[%clk 0:02:58]}  Nc6 {[%clk 0:02:45]} 8. Ne2 {[%clk 0:02:59]}  f6 {[%clk 0:02:46]} 9. exf6 {[%clk 0:02:58]}  Nxf6 {[%clk 0:02:47]} 10. Nf3 {[%clk 0:02:58]}  Bd6 {[%clk 0:02:44]} 11. O-O {[%clk 0:02:57]}  O-O {[%clk 0:02:44]} 12. Bf4 {[%clk 0:02:56]}  Bxf4 {[%clk 0:02:43]} 13. Nxf4 {[%clk 0:02:57]}  Ng4 {[%clk 0:02:33]} 14. Qd2 {[%clk 0:02:44]}  Qd6 {[%clk 0:02:30]} 15. g3 {[%clk 0:02:34]}  e5 {[%clk 0:02:23]} 16. dxe5 {[%clk 0:02:32]}  Ncxe5 {[%clk 0:02:23]} 17. Be2 {[%clk 0:02:27]}  Nxf3+ {[%clk 0:01:40]} 18. Bxf3 {[%clk 0:02:26]}  d4 {[%clk 0:01:41]} 19. Rad1 {[%clk 0:02:15]}  Qh6 {[%clk 0:01:21]} 20. h4 {[%clk 0:02:13]}  Bf5 {[%clk 0:00:24]} 21. Qxd4 {[%clk 0:01:56]}  Rad8 {[%clk 0:00:21]} 22. Qxd8 {[%clk 0:01:33]}  Rxd8 {[%clk 0:00:22]} 23. Rxd8+ {[%clk 0:01:34]}  Kf7 {[%clk 0:00:23]} 24. Re1 {[%clk 0:01:13]}  Qb6 {[%clk 0:00:13]} 25. Bd5+ {[%clk 0:01:12]}  Be6 {[%clk 0:00:03]} 26. Bxe6+ {[%clk 0:01:11]}  Ke7 {[%clk 0:00:03]} 27. Nd5+ {[%clk 0:01:11]}  Kxd8 {[%clk 0:00:00]} 28. Nxb6 {[%clk 0:01:10]} 1-0

[Event "November 21 Early 2023"]
[Site "https://www.chess.com"]
[Date "2023.11.21"]
[Round "2"]
[White "Gokerkan, Cem Kaan"]
[Black "Nasir, Zehn"]
[Result "1-0"]
[Board "48"]
[TimeControl "180+1"]
[WhiteFideId "6336760"]
[BlackFideId "2613239"]
[WhiteElo "2365"]
[BlackElo "2004"]
[WhiteTeam "TUR"]
[BlackTeam "CAN"]
[WhiteClock "0:01:48"]
[BlackClock "0:00:14"]

1. e4 {[%clk 0:03:00]}  c6 {[%clk 0:02:59]} 2. d4 {[%clk 0:02:59]}  d5 {[%clk 0:03:00]} 3. e5 {[%clk 0:03:00]}  Bf5 {[%clk 0:03:00]} 4. h4 {[%clk 0:03:00]}  h5 {[%clk 0:03:00]} 5. c4 {[%clk 0:03:01]}  e6 {[%clk 0:03:00]} 6. Nc3 {[%clk 0:03:01]}  Nd7 {[%clk 0:03:00]} 7. cxd5 {[%clk 0:03:01]}  cxd5 {[%clk 0:02:59]} 8. Bd3 {[%clk 0:03:02]}  Bxd3 {[%clk 0:02:55]} 9. Qxd3 {[%clk 0:03:03]}  Ne7 {[%clk 0:02:53]} 10. Bg5 {[%clk 0:03:02]}  a6 {[%clk 0:02:51]} 11. Nf3 {[%clk 0:03:01]}  Qb6 {[%clk 0:02:37]} 12. O-O {[%clk 0:03:01]}  Rc8 {[%clk 0:02:32]} 13. Rfc1 {[%clk 0:02:57]}  Nc6 {[%clk 0:02:30]} 14. Nxd5 {[%clk 0:02:19]}  exd5 {[%clk 0:02:25]} 15. e6 {[%clk 0:02:20]}  Nf6 {[%clk 0:02:05]} 16. Ne5 {[%clk 0:02:18]}  Bd6 {[%clk 0:01:20]} 17. exf7+ {[%clk 0:02:14]}  Ke7 {[%clk 0:01:01]} 18. Qf5 {[%clk 0:02:14]}  Rhd8 {[%clk 0:00:45]} 19. Re1 {[%clk 0:02:07]}  Kf8 {[%clk 0:00:27]} 20. Bxf6 {[%clk 0:01:48]}  gxf6 {[%clk 0:00:25]} 21. Nd7+ {[%clk 0:01:48]}  Rxd7 {[%clk 0:00:23]} 22. Qxd7 {[%clk 0:01:49]}  Rd8 {[%clk 0:00:16]} 23. Re8+ {[%clk 0:01:48]}  Kg7 {[%clk 0:00:14]} 24. f8=Q+ {[%clk 0:01:48]} 1-0

[Event "November 21 Early 2023"]
[Site "https://www.chess.com"]
[Date "2023.11.21"]
[Round "2"]
[White "Beerdsen, Thomas"]
[Black "Grunberg, Mihai-Lucian"]
[Result "1-0"]
[Board "50"]
[TimeControl "180+1"]
[WhiteFideId "1030108"]
[BlackFideId "1204149"]
[WhiteElo "2550"]
[BlackElo "2363"]
[WhiteTeam "NED"]
[BlackTeam "ROU"]
[WhiteClock "0:02:20"]
[BlackClock "0:00:55"]

1. e4 {[%clk 0:03:00]}  Nf6 {[%clk 0:02:55]} 2. e5 {[%clk 0:03:00]}  Nd5 {[%clk 0:02:56]} 3. d4 {[%clk 0:03:01]}  d6 {[%clk 0:02:56]} 4. Nf3 {[%clk 0:03:01]}  dxe5 {[%clk 0:02:55]} 5. Nxe5 {[%clk 0:03:02]}  c6 {[%clk 0:02:56]} 6. Be2 {[%clk 0:03:02]}  Nd7 {[%clk 0:02:54]} 7. f4 {[%clk 0:03:03]}  Nxe5 {[%clk 0:02:51]} 8. fxe5 {[%clk 0:03:02]}  Bf5 {[%clk 0:02:43]} 9. O-O {[%clk 0:03:02]}  e6 {[%clk 0:02:43]} 10. a3 {[%clk 0:03:01]}  Be7 {[%clk 0:02:42]} 11. c4 {[%clk 0:03:02]}  Nc7 {[%clk 0:02:39]} 12. Nc3 {[%clk 0:03:02]}  Bg5 {[%clk 0:02:36]} 13. Bf3 {[%clk 0:02:53]}  O-O {[%clk 0:02:35]} 14. Kh1 {[%clk 0:02:51]}  Re8 {[%clk 0:02:26]} 15. Bxg5 {[%clk 0:02:45]}  Qxg5 {[%clk 0:02:25]} 16. Qe2 {[%clk 0:02:46]}  Rad8 {[%clk 0:02:24]} 17. Rad1 {[%clk 0:02:47]}  Bg6 {[%clk 0:02:17]} 18. Ne4 {[%clk 0:02:46]}  Qh6 {[%clk 0:02:12]} 19. Nd6 {[%clk 0:02:46]}  Re7 {[%clk 0:02:09]} 20. Nxb7 {[%clk 0:02:45]}  Rb8 {[%clk 0:02:09]} 21. Na5 {[%clk 0:02:46]}  Rd7 {[%clk 0:02:01]} 22. Nxc6 {[%clk 0:02:45]}  Rb3 {[%clk 0:01:59]} 23. d5 {[%clk 0:02:41]}  exd5 {[%clk 0:01:56]} 24. Bxd5 {[%clk 0:02:37]}  Re3 {[%clk 0:01:52]} 25. Qf2 {[%clk 0:02:28]}  Nxd5 {[%clk 0:01:22]} 26. Rxd5 {[%clk 0:02:29]}  Rxd5 {[%clk 0:01:20]} 27. cxd5 {[%clk 0:02:27]}  Rd3 {[%clk 0:01:17]} 28. e6 {[%clk 0:02:22]}  Rxd5 {[%clk 0:00:55]} 29. Ne7+ {[%clk 0:02:20]} 1-0

[Event "November 21 Early 2023"]
[Site "https://www.chess.com"]
[Date "2023.11.21"]
[Round "2"]
[White "AlmasRakhmatullaev"]
[Black "Jovic, Stanoje"]
[Result "1-0"]
[Board "52"]
[TimeControl "180+1"]
[BlackFideId "905020"]
[WhiteElo "2864"]
[BlackElo "2249"]
[BlackTeam "SRB"]
[WhiteClock "0:00:23"]
[BlackClock "0:00:00"]

1. e4 {[%clk 0:03:00]}  c6 {[%clk 0:02:59]} 2. Ne2 {[%clk 0:02:53]}  d5 {[%clk 0:02:59]} 3. Nec3 {[%clk 0:02:52]}  d4 {[%clk 0:02:57]} 4. Ne2 {[%clk 0:02:51]}  e5 {[%clk 0:02:57]} 5. Ng1 {[%clk 0:02:52]}  Nf6 {[%clk 0:02:57]} 6. d3 {[%clk 0:02:49]}  c5 {[%clk 0:02:53]} 7. g3 {[%clk 0:02:45]}  Nc6 {[%clk 0:02:51]} 8. Bg2 {[%clk 0:02:45]}  Rb8 {[%clk 0:02:43]} 9. Nf3 {[%clk 0:02:42]}  b5 {[%clk 0:02:43]} 10. O-O {[%clk 0:02:39]}  c4 {[%clk 0:02:41]} 11. Ne1 {[%clk 0:02:29]}  h5 {[%clk 0:02:38]} 12. h4 {[%clk 0:02:02]}  Be7 {[%clk 0:02:21]} 13. Nd2 {[%clk 0:01:57]}  Be6 {[%clk 0:02:15]} 14. Ndf3 {[%clk 0:01:53]}  Bg4 {[%clk 0:02:11]} 15. Qd2 {[%clk 0:01:42]}  Bb4 {[%clk 0:02:05]} 16. c3 {[%clk 0:01:19]}  dxc3 {[%clk 0:01:56]} 17. bxc3 {[%clk 0:01:19]}  Bc5 {[%clk 0:01:48]} 18. d4 {[%clk 0:00:59]}  exd4 {[%clk 0:01:48]} 19. e5 {[%clk 0:00:59]}  Ne4 {[%clk 0:01:43]} 20. Qf4 {[%clk 0:00:55]}  Nxc3 {[%clk 0:01:42]} 21. Kh1 {[%clk 0:00:55]}  Ne2 {[%clk 0:01:37]} 22. Qe4 {[%clk 0:00:55]}  Qd7 {[%clk 0:01:19]} 23. Qxe2 {[%clk 0:00:54]}  Nb4 {[%clk 0:01:16]} 24. Qe4 {[%clk 0:00:43]}  Rb6 {[%clk 0:01:03]} 25. Ng5 {[%clk 0:00:36]}  Kf8 {[%clk 0:00:49]} 26. Ba3 {[%clk 0:00:30]}  Bf5 {[%clk 0:00:45]} 27. Qa8+ {[%clk 0:00:26]}  Qc8 {[%clk 0:00:44]} 28. Qxa7 {[%clk 0:00:23]}  Rf6 {[%clk 0:00:00]} 29. Bxb4 {[%clk 0:00:23]} 1-0

[Event "November 21 Early 2023"]
[Site "https://www.chess.com"]
[Date "2023.11.21"]
[Round "2"]
[White "Rohith Krishna S"]
[Black "Pham, Le Thao Nguyen"]
[Result "1/2-1/2"]
[Board "53"]
[TimeControl "180+1"]
[WhiteFideId "46617051"]
[BlackFideId "12401226"]
[WhiteElo "2394"]
[BlackElo "2261"]
[WhiteTeam "IND"]
[BlackTeam "VIE"]
[WhiteClock "0:00:41"]
[BlackClock "0:00:07"]

1. c4 {[%clk 0:03:00]}  Nf6 {[%clk 0:02:50]} 2. Nc3 {[%clk 0:02:58]}  c6 {[%clk 0:02:43]} 3. e4 {[%clk 0:02:56]}  e5 {[%clk 0:02:43]} 4. d3 {[%clk 0:02:53]}  d6 {[%clk 0:02:26]} 5. g3 {[%clk 0:02:48]}  g6 {[%clk 0:02:26]} 6. Bg2 {[%clk 0:02:48]}  Bg7 {[%clk 0:02:26]} 7. Nge2 {[%clk 0:02:48]}  O-O {[%clk 0:02:27]} 8. O-O {[%clk 0:02:48]}  Nbd7 {[%clk 0:01:47]} 9. h3 {[%clk 0:02:45]}  Nc5 {[%clk 0:01:45]} 10. f4 {[%clk 0:02:38]}  Ne6 {[%clk 0:01:44]} 11. Be3 {[%clk 0:02:36]}  Nd7 {[%clk 0:01:25]} 12. f5 {[%clk 0:02:20]}  Nd4 {[%clk 0:01:23]} 13. g4 {[%clk 0:02:19]}  Nxe2+ {[%clk 0:00:39]} 14. Qxe2 {[%clk 0:02:08]}  Bf6 {[%clk 0:00:38]} 15. Rf3 {[%clk 0:02:05]}  Bg5 {[%clk 0:00:37]} 16. Raf1 {[%clk 0:02:06]}  Bxe3+ {[%clk 0:00:30]} 17. Qxe3 {[%clk 0:02:07]}  f6 {[%clk 0:00:27]} 18. fxg6 {[%clk 0:01:58]}  hxg6 {[%clk 0:00:28]} 19. Qh6 {[%clk 0:01:58]}  Qe8 {[%clk 0:00:28]} 20. g5 {[%clk 0:01:55]}  fxg5 {[%clk 0:00:24]} 21. Qxg5 {[%clk 0:01:46]}  Rxf3 {[%clk 0:00:20]} 22. Rxf3 {[%clk 0:01:45]}  Nf8 {[%clk 0:00:21]} 23. Qf6 {[%clk 0:01:44]}  Be6 {[%clk 0:00:20]} 24. h4 {[%clk 0:01:41]}  Qf7 {[%clk 0:00:20]} 25. Qg5 {[%clk 0:01:40]}  Qg7 {[%clk 0:00:20]} 26. Rg3 {[%clk 0:01:40]}  Re8 {[%clk 0:00:11]} 27. h5 {[%clk 0:01:39]}  Kh7 {[%clk 0:00:11]} 28. Ne2 {[%clk 0:01:38]}  Qh6 {[%clk 0:00:11]} 29. Qf6 {[%clk 0:01:34]}  Qg7 {[%clk 0:00:11]} 30. Qh4 {[%clk 0:01:32]}  Qh6 {[%clk 0:00:11]} 31. Rg5 {[%clk 0:01:29]}  Bf7 {[%clk 0:00:09]} 32. Bh3 {[%clk 0:01:25]}  gxh5 {[%clk 0:00:07]} 33. Bf5+ {[%clk 0:01:24]}  Kh8 {[%clk 0:00:08]} 34. Ng3 {[%clk 0:01:24]}  Nh7 {[%clk 0:00:08]} 35. Bxh7 {[%clk 0:01:21]}  Qxh7 {[%clk 0:00:06]} 36. Nxh5 {[%clk 0:01:16]}  Rg8 {[%clk 0:00:06]} 37. Rxg8+ {[%clk 0:01:16]}  Qxg8+ {[%clk 0:00:06]} 38. Kf2 {[%clk 0:01:13]}  Bxh5 {[%clk 0:00:06]} 39. Qxh5+ {[%clk 0:01:14]}  Kg7 {[%clk 0:00:06]} 40. Ke3 {[%clk 0:01:09]}  Qf7 {[%clk 0:00:06]} 41. Qg5+ {[%clk 0:01:09]}  Kh7 {[%clk 0:00:06]} 42. Qh4+ {[%clk 0:01:07]}  Kg7 {[%clk 0:00:06]} 43. Kd2 {[%clk 0:01:07]}  Qf6 {[%clk 0:00:05]} 44. Qg4+ {[%clk 0:01:07]}  Qg6 {[%clk 0:00:04]} 45. Qd7+ {[%clk 0:01:07]}  Kh6 {[%clk 0:00:04]} 46. Qxb7 {[%clk 0:01:05]}  Qg2+ {[%clk 0:00:04]} 47. Kc3 {[%clk 0:01:05]}  c5 {[%clk 0:00:04]} 48. Qd5 {[%clk 0:01:03]}  Qg6 {[%clk 0:00:03]} 49. Kb3 {[%clk 0:01:04]}  Kg5 {[%clk 0:00:03]} 50. Ka4 {[%clk 0:01:04]}  Qe8+ {[%clk 0:00:02]} 51. Ka3 {[%clk 0:01:03]}  Qb8 {[%clk 0:00:02]} 52. b3 {[%clk 0:01:02]}  Kf4 {[%clk 0:00:03]} 53. Kb2 {[%clk 0:00:59]}  Qb4 {[%clk 0:00:02]} 54. Kc2 {[%clk 0:00:40]}  Ke3 {[%clk 0:00:03]} 55. Qxd6 {[%clk 0:00:39]}  Qd2+ {[%clk 0:00:03]} 56. Kb1 {[%clk 0:00:39]}  Qd1+ {[%clk 0:00:04]} 57. Kb2 {[%clk 0:00:40]}  Qd2+ {[%clk 0:00:04]} 58. Ka3 {[%clk 0:00:40]}  Qb4+ {[%clk 0:00:05]} 59. Kb2 {[%clk 0:00:40]}  Qd2+ {[%clk 0:00:06]} 60. Ka3 {[%clk 0:00:41]}  Qb4+ {[%clk 0:00:06]} 61. Kb2 {[%clk 0:00:41]}  Qd2+ {[%clk 0:00:07]} 1/2-1/2